[Event "Championnat d'Europe de Blitz"]
[Date "2024.12.09"]
[White "Sargissian, Gabriel"]
[Black "Bogoevski, Jani"]
[WhiteElo "2628"]
[BlackElo "2144"]
[Round "3.43"]
[Result "1-0"]
[TimeControl "180+2"]

1. Nf3 {[%emt 00:02:03] [%clk 00:03:03]} Nf6 {[%emt 00:00:04] [%clk 00:03:01]}
2. g3 {[%emt 00:00:01] [%clk 00:03:03]} d5 {[%emt 00:00:02] [%clk 00:03:01]} 3.
Bg2 {[%emt 00:00:01] [%clk 00:03:03]} e6 {[%emt 00:00:03] [%clk 00:03:01]} 4.
O-O {[%emt 00:00:02] [%clk 00:03:03]} Be7 {[%emt 00:00:02] [%clk 00:03:02]} 5.
c4 {[%emt 00:00:04] [%clk 00:03:01]} O-O {[%emt 00:00:05] [%clk 00:02:59]} 6. b3
{[%emt 00:00:04] [%clk 00:02:58]} Nbd7 {[%emt 00:00:03] [%clk 00:02:58]} 7. Bb2
{[%emt 00:00:02] [%clk 00:02:59]} c6 {[%emt 00:00:01] [%clk 00:02:59]} 8. d4
{[%emt 00:00:09] [%clk 00:02:51]} b5 {[%emt 00:00:02] [%clk 00:02:59]} 9. c5
{[%emt 00:00:04] [%clk 00:02:49]} Ne4 {[%emt 00:00:02] [%clk 00:03:00]} 10. Qc2
{[%emt 00:00:21] [%clk 00:02:29]} f5 {[%emt 00:00:04] [%clk 00:02:58]} 11. Nbd2
{[%emt 00:00:03] [%clk 00:02:28]} a5 {[%emt 00:00:11] [%clk 00:02:50]} 12. Ne1
{[%emt 00:00:17] [%clk 00:02:13]} Bg5 {[%emt 00:00:16] [%clk 00:02:36]} 13. Ndf3
{[%emt 00:00:05] [%clk 00:02:10]} Bf6 {[%emt 00:00:05] [%clk 00:02:32]} 14. Nd3
{[%emt 00:00:03] [%clk 00:02:10]} g6 {[%emt 00:00:15] [%clk 00:02:19]} 15. Nfe5
{[%emt 00:00:25] [%clk 00:01:47]} Qc7 {[%emt 00:00:34] [%clk 00:01:47]} 16. Nxd7
{[%emt 00:00:36] [%clk 00:01:13]} Bxd7 {[%emt 00:00:03] [%clk 00:01:45]} 17. Ne5
{[%emt 00:00:02] [%clk 00:01:13]} Be8 {[%emt 00:00:08] [%clk 00:01:39]} 18. Rad1
{[%emt 00:00:19] [%clk 00:00:56]} Ng5 {[%emt 00:00:07] [%clk 00:01:34]} 19. h4
{[%emt 00:00:12] [%clk 00:00:46]} Nf7 {[%emt 00:00:03] [%clk 00:01:33]} 20. Nf3
{[%clk 00:00:47]} e5 {[%emt 00:00:13] [%clk 00:01:23]} 21. dxe5 {[%emt 00:00:03]
[%clk 00:00:46]} Nxe5 {[%emt 00:00:01] [%clk 00:01:23]} 22. Nxe5 {[%emt
00:00:06] [%clk 00:00:43]} Bxe5 {[%emt 00:00:02] [%clk 00:01:23]} 23. e3 {[%clk
00:00:43]} Qg7 {[%emt 00:00:12] [%clk 00:01:13]} 24. Bxe5 {[%emt 00:00:03] [%clk
00:00:42]} Qxe5 {[%clk 00:01:14]} 25. Rd4 {[%clk 00:00:43]} Ra7 {[%emt 00:00:13]
[%clk 00:01:04]} 26. a3 {[%emt 00:00:01] [%clk 00:00:44]} Raf7 {[%emt 00:00:03]
[%clk 00:01:03]} 27. Qd2 {[%emt 00:00:08] [%clk 00:00:38]} Qc7 {[%emt 00:00:06]
[%clk 00:00:59]} 28. Rd3 {[%emt 00:00:15] [%clk 00:00:26]} Re7 {[%emt 00:00:05]
[%clk 00:00:55]} 29. Qc3 {[%emt 00:00:03] [%clk 00:00:26]} Bf7 {[%emt 00:00:07]
[%clk 00:00:50]} 30. h5 {[%emt 00:00:04] [%clk 00:00:24]} Ra8 {[%emt 00:00:02]
[%clk 00:00:50]} 31. Qf6 {[%emt 00:00:05] [%clk 00:00:21]} Re6 {[%emt 00:00:10]
[%clk 00:00:43]} 32. Qg5 {[%clk 00:00:21]} Qe7 {[%emt 00:00:03] [%clk 00:00:43]}
33. Qxe7 {[%emt 00:00:01] [%clk 00:00:21]} Rxe7 {[%emt 00:00:01] [%clk
00:00:44]} 34. Rd4 {[%emt 00:00:02] [%clk 00:00:22]} Kg7 {[%emt 00:00:03] [%clk
00:00:43]} 35. Bf3 {[%emt 00:00:02] [%clk 00:00:22]} g5 {[%emt 00:00:04] [%clk
00:00:40]} 36. g4 {[%emt 00:00:03] [%clk 00:00:22]} Be6 {[%emt 00:00:05] [%clk
00:00:36]} 37. gxf5 {[%emt 00:00:04] [%clk 00:00:21]} Bxf5 {[%clk 00:00:38]} 38.
Kg2 {[%emt 00:00:02] [%clk 00:00:20]} h6 {[%emt 00:00:02] [%clk 00:00:38]} 39.
Kg3 {[%emt 00:00:01] [%clk 00:00:22]} Rae8 {[%emt 00:00:03] [%clk 00:00:37]} 40.
Rc1 {[%emt 00:00:04] [%clk 00:00:19]} Kf6 {[%emt 00:00:02] [%clk 00:00:38]} 41.
Bg2 {[%emt 00:00:02] [%clk 00:00:18]} Be4 {[%emt 00:00:03] [%clk 00:00:37]} 42.
Bh3 {[%emt 00:00:01] [%clk 00:00:19]} Bf5 {[%emt 00:00:01] [%clk 00:00:39]} 43.
Bg2 {[%emt 00:00:07] [%clk 00:00:14]} Be4 {[%emt 00:00:01] [%clk 00:00:40]} 44.
Bf1 {[%emt 00:00:02] [%clk 00:00:14]} Bf5 {[%emt 00:00:06] [%clk 00:00:35]} 45.
Be2 {[%clk 00:00:15]} Re4 {[%emt 00:00:05] [%clk 00:00:32]} 46. Rcd1 {[%emt
00:00:02] [%clk 00:00:16]} R4e5 {[%emt 00:00:04] [%clk 00:00:30]} 47. Ra1 {[%emt
00:00:03] [%clk 00:00:14]} Re4 {[%emt 00:00:02] [%clk 00:00:30]} 48. Rad1 {[%emt
00:00:01] [%clk 00:00:15]} R4e5 {[%emt 00:00:01] [%clk 00:00:32]} 49. R1d2
{[%emt 00:00:01] [%clk 00:00:15]} R5e7 {[%emt 00:00:05] [%clk 00:00:29]} 50. Bf3
{[%emt 00:00:02] [%clk 00:00:16]} Be4 {[%emt 00:00:02] [%clk 00:00:29]} 51. Bg4
{[%clk 00:00:17]} Bf5 {[%clk 00:00:30]} 52. Bd1 {[%emt 00:00:01] [%clk
00:00:17]} Re5 {[%emt 00:00:02] [%clk 00:00:31]} 53. Bf3 {[%emt 00:00:06] [%clk
00:00:13]} R5e7 {[%emt 00:00:01] [%clk 00:00:31]} 54. Ra2 {[%clk 00:00:14]} Re5
{[%emt 00:00:01] [%clk 00:00:32]} 55. b4 {[%emt 00:00:05] [%clk 00:00:12]} a4
{[%clk 00:00:33]} 56. Rad2 {[%emt 00:00:01] [%clk 00:00:12]} R5e7 {[%emt
00:00:01] [%clk 00:00:34]} 57. Rd1 {[%clk 00:00:13]} Re5 {[%clk 00:00:35]} 58.
Rg1 {[%emt 00:00:05] [%clk 00:00:11]} R8e7 {[%emt 00:00:01] [%clk 00:00:36]} 59.
Rgd1 {[%clk 00:00:12]} Re8 {[%clk 00:00:37]} 60. Rc1 {[%clk 00:00:14]} R8e7
{[%clk 00:00:39]} 61. Rh1 {[%emt 00:00:02] [%clk 00:00:14]} Re8 {[%emt 00:00:01]
[%clk 00:00:40]} 62. Kg2 {[%clk 00:00:16]} Be4 {[%emt 00:00:03] [%clk 00:00:39]}
63. Kg3 {[%emt 00:00:05] [%clk 00:00:13]} R5e7 {[%emt 00:00:06] [%clk 00:00:35]}
64. Rhd1 {[%emt 00:00:02] [%clk 00:00:13]} Bf5 {[%emt 00:00:02] [%clk 00:00:35]}
65. Kg2 {[%emt 00:00:02] [%clk 00:00:12]} Re5 {[%clk 00:00:36]} 66. Kf1 {[%emt
00:00:02] [%clk 00:00:12]} Be4 {[%emt 00:00:03] [%clk 00:00:35]} 67. Ke2 {[%emt
00:00:01] [%clk 00:00:13]} Bf5 {[%emt 00:00:04] [%clk 00:00:34]} 68. Rg1 {[%emt
00:00:02] [%clk 00:00:13]} Be4 {[%emt 00:00:01] [%clk 00:00:35]} 69. Rg3 {[%emt
00:00:02] [%clk 00:00:12]} Bf5 {[%emt 00:00:03] [%clk 00:00:34]} 70. Kd2 {[%emt
00:00:01] [%clk 00:00:14]} R8e7 {[%emt 00:00:06] [%clk 00:00:30]} 71. Bd1 {[%emt
00:00:02] [%clk 00:00:13]} Be4 {[%clk 00:00:31]} 72. f3 {[%emt 00:00:09] [%clk
00:00:06]} Bf5 {[%emt 00:00:01] [%clk 00:00:32]} 73. f4 {[%clk 00:00:08]} gxf4
{[%emt 00:00:05] [%clk 00:00:28]} 74. Rxf4 {[%emt 00:00:01] [%clk 00:00:09]} Re4
{[%emt 00:00:03] [%clk 00:00:28]} 75. Rg6+ {[%clk 00:00:10]} Ke5 {[%emt
00:00:01] [%clk 00:00:28]} 76. Rxe4+ {[%emt 00:00:04] [%clk 00:00:08]} Bxe4
{[%emt 00:00:05] [%clk 00:00:26]} 77. Rxc6 {[%clk 00:00:08]} Rg7 {[%clk
00:00:28]} 78. Rxh6 {[%emt 00:00:06] [%clk 00:00:04]} d4 {[%emt 00:00:05] [%clk
00:00:26]} 79. exd4+ {[%emt 00:00:01] [%clk 00:00:05]} Kxd4 {[%emt 00:00:03]
[%clk 00:00:25]} 80. Rd6+ {[%emt 00:00:02] [%clk 00:00:04]} Kc4 {[%clk
00:00:27]} 81. Ke3 {[%clk 00:00:06]} Bb1 {[%emt 00:00:03] [%clk 00:00:26]} 82.
h6 {[%emt 00:00:02] [%clk 00:00:06]} Rg3+ {[%emt 00:00:03]} 83. Kf4 {[%clk
00:00:06]} Rh3 {[%emt 00:00:04] [%clk 00:00:25]} 84. c6 {[%emt 00:00:01] [%clk
00:00:07]} Rh4 {[%emt 00:00:02] [%clk 00:00:25]} 85. Kg5 {[%emt 00:00:01] [%clk
00:00:08]} Re4 {[%emt 00:00:14] [%clk 00:00:13]} 86. c7 {[%emt 00:00:02] [%clk
00:00:08]} Re5+ {[%emt 00:00:02] [%clk 00:00:13]} 87. Kf6 {[%emt 00:00:01] [%clk
00:00:08]} Rf5+ {[%clk 00:00:15]} 88. Ke7 {[%emt 00:00:02] [%clk 00:00:08]} Re5+
{[%emt 00:00:01] [%clk 00:00:16]} 89. Re6 {[%emt 00:00:01] [%clk 00:00:09]} 1-0

[Site "Europe Echecs"]

[Event "Championnat d'Europe de Blitz"]
[Date "2024.12.09"]
[White "Ghimpu, Samuel-Timotei"]
[Black "Djukic, Nikola"]
[WhiteElo "2475"]
[BlackElo "2493"]
[Round "3.44"]
[Result "1/2-1/2"]
[TimeControl "180+2"]

1. d4 {[%emt 00:00:03] [%clk 00:03:01]} Nf6 {[%emt 00:00:02] [%clk 00:03:03]} 2.
Nf3 {[%emt 00:00:01] [%clk 00:03:02]} g6 {[%emt 00:00:02] [%clk 00:03:03]} 3.
Nbd2 {[%emt 00:00:01] [%clk 00:03:02]} c5 {[%emt 00:00:04] [%clk 00:03:02]} 4.
dxc5 {[%emt 00:00:02] [%clk 00:03:02]} Qa5 {[%emt 00:00:01] [%clk 00:03:03]} 5.
a3 {[%emt 00:00:01] [%clk 00:03:03]} Qxc5 {[%emt 00:00:02] [%clk 00:03:03]} 6.
b4 {[%emt 00:00:01] [%clk 00:03:04]} Qc7 {[%emt 00:00:01] [%clk 00:03:04]} 7.
Bb2 {[%clk 00:03:05]} Bg7 {[%emt 00:00:01] [%clk 00:03:05]} 8. c4 {[%clk
00:03:06]} O-O {[%emt 00:00:05] [%clk 00:03:03]} 9. e3 {[%clk 00:03:07]} b6
{[%emt 00:00:06] [%clk 00:03:00]} 10. Be2 {[%clk 00:03:08]} Bb7 {[%emt 00:00:01]
[%clk 00:03:01]} 11. O-O {[%emt 00:00:02] [%clk 00:03:08]} d6 {[%emt 00:00:06]
[%clk 00:02:57]} 12. Qb3 {[%emt 00:00:04] [%clk 00:03:06]} Nbd7 {[%emt 00:00:03]
[%clk 00:02:56]} 13. h3 {[%emt 00:00:02] [%clk 00:03:06]} Rac8 {[%emt 00:00:10]
[%clk 00:02:48]} 14. Rac1 {[%emt 00:00:05] [%clk 00:03:03]} Qb8 {[%emt 00:00:03]
[%clk 00:02:47]} 15. Rfd1 {[%emt 00:00:01] [%clk 00:03:04]} a6 {[%emt 00:00:04]
[%clk 00:02:46]} 16. Qa2 {[%emt 00:00:03] [%clk 00:03:02]} Qa8 {[%emt 00:00:08]
[%clk 00:02:40]} 17. Bf1 {[%emt 00:00:01] [%clk 00:03:03]} Rfd8 {[%emt 00:00:12]
[%clk 00:02:30]} 18. Nd4 {[%emt 00:00:04] [%clk 00:03:01]} d5 {[%emt 00:00:09]
[%clk 00:02:23]} 19. Qa1 {[%emt 00:00:30] [%clk 00:02:33]} dxc4 {[%emt 00:00:15]
[%clk 00:02:10]} 20. Nxc4 {[%emt 00:00:04] [%clk 00:02:30]} b5 {[%emt 00:00:07]
[%clk 00:02:05]} 21. Na5 {[%emt 00:00:04] [%clk 00:02:29]} Bd5 {[%emt 00:00:06]
[%clk 00:02:01]} 22. a4 {[%emt 00:00:09] [%clk 00:02:22]} bxa4 {[%emt 00:00:12]
[%clk 00:01:51]} 23. Qxa4 {[%emt 00:00:01] [%clk 00:02:23]} Nb6 {[%emt 00:00:04]
[%clk 00:01:49]} 24. Qa1 {[%emt 00:00:03] [%clk 00:02:22]} Ne8 {[%emt 00:00:24]
[%clk 00:01:26]} 25. Ndc6 {[%emt 00:00:27] [%clk 00:01:58]} Bxb2 {[%emt
00:00:29] [%clk 00:00:59]} 26. Qxb2 {[%emt 00:00:09] [%clk 00:01:51]} Bxc6
{[%emt 00:00:30] [%clk 00:00:31]} 27. Rxd8 {[%emt 00:00:33] [%clk 00:01:20]}
Rxd8 {[%emt 00:00:01] [%clk 00:00:32]} 28. Nxc6 {[%emt 00:00:01] [%clk
00:01:20]} Rd7 {[%clk 00:00:34]} 29. Qe5 {[%emt 00:00:10] [%clk 00:01:13]} e6
{[%emt 00:00:02] [%clk 00:00:34]} 30. Qa5 {[%emt 00:00:05] [%clk 00:01:10]} Nd5
{[%emt 00:00:20] [%clk 00:00:16]} 31. Qxa6 {[%emt 00:00:09] [%clk 00:01:03]}
Qxa6 {[%emt 00:00:08] [%clk 00:00:10]} 32. Bxa6 {[%emt 00:00:01] [%clk
00:01:04]} Rc7 {[%emt 00:00:03] [%clk 00:00:10]} 33. b5 {[%emt 00:00:32] [%clk
00:00:34]} Nd6 {[%clk 00:00:10]} 34. Rb1 {[%emt 00:00:12] [%clk 00:00:25]} Nb6
{[%emt 00:00:02] [%clk 00:00:11]} 35. Rd1 {[%clk 00:00:26]} Ndc4 {[%emt
00:00:02] [%clk 00:00:11]} 36. Rd8+ {[%emt 00:00:08] [%clk 00:00:19]} Kg7 {[%emt
00:00:01] [%clk 00:00:12]} 37. e4 {[%emt 00:00:03] [%clk 00:00:18]} Kf6 {[%emt
00:00:08] [%clk 00:00:06]} 38. f4 {[%emt 00:00:06] [%clk 00:00:15]} h6 {[%emt
00:00:02] [%clk 00:00:06]} 39. Kf2 {[%emt 00:00:02] [%clk 00:00:15]} g5 {[%clk
00:00:07]} 40. g3 {[%clk 00:00:16]} gxf4 {[%emt 00:00:01] [%clk 00:00:08]} 41.
gxf4 {[%emt 00:00:01] [%clk 00:00:17]} e5 {[%emt 00:00:01] [%clk 00:00:09]} 42.
Nxe5 {[%emt 00:00:09] [%clk 00:00:10]} Nxe5 {[%emt 00:00:07] [%clk 00:00:04]}
43. Rd6+ {[%clk 00:00:11]} Ke7 {[%emt 00:00:01] [%clk 00:00:05]} 44. Rxb6 {[%emt
00:00:02] [%clk 00:00:11]} Rc2+ {[%emt 00:00:01] [%clk 00:00:06]} 45. Kg3 {[%emt
00:00:03] [%clk 00:00:10]} Rc3+ {[%emt 00:00:01] [%clk 00:00:07]} 46. Kg2 {[%emt
00:00:01] [%clk 00:00:11]} Ng6 {[%clk 00:00:08]} 47. f5 {[%emt 00:00:05] [%clk
00:00:08]} Nf4+ {[%clk 00:00:10]} 48. Kf1 {[%clk 00:00:09]} Rxh3 {[%emt
00:00:02] [%clk 00:00:10]} 49. e5 {[%emt 00:00:01] [%clk 00:00:10]} Re3 {[%emt
00:00:02] [%clk 00:00:10]} 50. Rb7+ {[%emt 00:00:02] [%clk 00:00:11]} Ke8 {[%emt
00:00:01] [%clk 00:00:10]} 51. b6 {[%emt 00:00:06] [%clk 00:00:07]} Rb3 {[%emt
00:00:03] [%clk 00:00:09]} 52. Rb8+ {[%emt 00:00:02] [%clk 00:00:07]} Kd7 {[%clk
00:00:11]} 53. b7 {[%clk 00:00:08]} Nd5 {[%emt 00:00:07] [%clk 00:00:06]} 54.
Rc8 {[%emt 00:00:03] [%clk 00:00:06]} Ne3+ {[%emt 00:00:05] [%clk 00:00:04]} 55.
Ke1 {[%emt 00:00:02] [%clk 00:00:06]} Nxf5 {[%emt 00:00:01] [%clk 00:00:05]} 56.
b8=Q {[%emt 00:00:02] [%clk 00:00:06]} Rxb8 {[%clk 00:00:06]} 57. Rxb8 {[%clk
00:00:07]} Nd4 {[%clk 00:00:07]} 58. Bc4 {[%emt 00:00:02] [%clk 00:00:07]} Nf3+
{[%clk 00:00:08]} 59. Kf2 {[%emt 00:00:02] [%clk 00:00:07]} Nxe5 {[%clk
00:00:09]} 60. Bb3 {[%emt 00:00:01] [%clk 00:00:08]} Ke7 {[%clk 00:00:10]} 61.
Ke3 {[%emt 00:00:01] [%clk 00:00:09]} Kf6 {[%clk 00:00:11]} 62. Rb6+ {[%emt
00:00:01] [%clk 00:00:10]} Kg5 {[%emt 00:00:02] [%clk 00:00:12]} 63. Ke4 {[%emt
00:00:01] [%clk 00:00:10]} f6 {[%clk 00:00:13]} 64. Rb8 {[%emt 00:00:04] [%clk
00:00:08]} Ng4 {[%emt 00:00:05]} 65. Rg8+ {[%clk 00:00:08]} Kh4 {[%clk
00:00:12]} 66. Kf5 {[%emt 00:00:04] [%clk 00:00:07]} h5 {[%emt 00:00:01] [%clk
00:00:14]} 67. Ba2 {[%emt 00:00:05] [%clk 00:00:04]} Nh6+ {[%clk 00:00:14]} 68.
Kxf6 {[%emt 00:00:03] [%clk 00:00:03]} Nxg8+ {[%clk 00:00:15]} 69. Kf5 {[%emt
00:00:02] [%clk 00:00:04]} Nh6+ {[%emt 00:00:01] [%clk 00:00:16]} 70. Kf4 {[%clk
00:00:04]} Kh3 {[%emt 00:00:02] [%clk 00:00:17]} 71. Be6+ {[%clk 00:00:05]} Kh4
{[%emt 00:00:01] [%clk 00:00:18]} 72. Ke4 {[%emt 00:00:04] [%clk 00:03:02]}
1/2-1/2

[Site "Europe Echecs"]

[Event "Championnat d'Europe de Blitz"]
[Date "2024.12.09"]
[White "Kozul, Zdenko"]
[Black "Kesidis, Odyseas"]
[WhiteElo "2519"]
[BlackElo "2241"]
[Round "3.45"]
[Result "1-0"]
[TimeControl "180+2"]

1. d4 {[%emt 00:14:19] [%clk 00:03:03]} Nf6 {[%clk 00:03:03]} 2. Nf3 {[%clk
00:03:04]} g6 {[%emt 00:00:02] [%clk 00:03:03]} 3. c4 {[%clk 00:03:05]} Bg7
{[%emt 00:00:01] [%clk 00:03:04]} 4. Nc3 {[%emt 00:00:01] [%clk 00:03:06]} O-O
{[%emt 00:00:02] [%clk 00:03:04]} 5. e4 {[%clk 00:03:07]} d6 {[%emt 00:00:01]
[%clk 00:03:05]} 6. Be2 {[%clk 00:03:08]} e5 {[%emt 00:00:02] [%clk 00:03:05]}
7. O-O {[%emt 00:00:02] [%clk 00:03:08]} Nc6 {[%emt 00:00:01] [%clk 00:03:06]}
8. d5 {[%emt 00:00:01] [%clk 00:03:09]} Ne7 {[%clk 00:03:06]} 9. Ne1 {[%clk
00:03:10]} Nd7 {[%emt 00:00:03] [%clk 00:03:06]} 10. Nd3 {[%emt 00:00:01] [%clk
00:03:10]} f5 {[%emt 00:00:01] [%clk 00:03:06]} 11. Bd2 {[%clk 00:03:11]} Nf6
{[%emt 00:00:02] [%clk 00:03:07]} 12. f3 {[%emt 00:00:01] [%clk 00:03:12]} f4
{[%emt 00:00:05] [%clk 00:03:04]} 13. c5 {[%emt 00:00:01] [%clk 00:03:13]} g5
{[%emt 00:00:03] [%clk 00:03:03]} 14. cxd6 {[%emt 00:00:03] [%clk 00:03:12]}
cxd6 {[%emt 00:00:02] [%clk 00:03:04]} 15. Nf2 {[%emt 00:00:01] [%clk 00:03:13]}
Ng6 {[%emt 00:00:09] [%clk 00:02:56]} 16. Qc2 {[%emt 00:00:02] [%clk 00:03:13]}
Rf7 {[%emt 00:00:05] [%clk 00:02:53]} 17. Rfc1 {[%emt 00:00:01] [%clk 00:03:14]}
h5 {[%emt 00:00:06] [%clk 00:02:49]} 18. Nb5 {[%clk 00:03:15]} Ne8 {[%emt
00:00:09] [%clk 00:02:42]} 19. a4 {[%emt 00:00:03] [%clk 00:03:14]} Bf8 {[%emt
00:00:17] [%clk 00:02:27]} 20. a5 {[%emt 00:00:26] [%clk 00:02:51]} Rg7 {[%emt
00:00:24] [%clk 00:02:05]} 21. h3 {[%emt 00:00:08] [%clk 00:02:44]} Nh4 {[%emt
00:00:05] [%clk 00:02:02]} 22. Be1 {[%clk 00:02:45]} a6 {[%emt 00:00:16] [%clk
00:01:49]} 23. Na3 {[%emt 00:00:01] [%clk 00:02:46]} Nf6 {[%emt 00:00:05] [%clk
00:01:45]} 24. Nc4 {[%emt 00:00:01] [%clk 00:02:47]} g4 {[%emt 00:00:03] [%clk
00:01:45]} 25. fxg4 {[%emt 00:00:35] [%clk 00:02:13]} hxg4 {[%emt 00:00:03]
[%clk 00:01:44]} 26. hxg4 {[%emt 00:00:02] [%clk 00:02:13]} Nxg4 {[%emt
00:00:21] [%clk 00:01:26]} 27. Bxg4 {[%emt 00:00:31] [%clk 00:01:44]} Bxg4
{[%emt 00:00:04] [%clk 00:01:23]} 28. Nxg4 {[%emt 00:00:02] [%clk 00:01:44]}
Rxg4 {[%emt 00:00:07] [%clk 00:01:18]} 29. Bxh4 {[%emt 00:00:15] [%clk
00:01:30]} Qxh4 {[%emt 00:00:02] [%clk 00:01:18]} 30. Ra3 {[%emt 00:00:02] [%clk
00:01:31]} Rc8 {[%emt 00:00:06] [%clk 00:01:15]} 31. Qe2 {[%emt 00:00:15] [%clk
00:01:17]} Qg5 {[%emt 00:00:04] [%clk 00:01:13]} 32. Rc2 {[%emt 00:00:15] [%clk
00:01:04]} Be7 {[%emt 00:00:08] [%clk 00:01:07]} 33. Rac3 {[%emt 00:00:21] [%clk
00:00:45]} Rf8 {[%emt 00:00:18] [%clk 00:00:52]} 34. Nd2 {[%emt 00:00:03] [%clk
00:00:43]} Kf7 {[%emt 00:00:24] [%clk 00:00:31]} 35. Nf3 {[%emt 00:00:03] [%clk
00:00:42]} Qh5 {[%emt 00:00:02] [%clk 00:00:30]} 36. Nh2 {[%emt 00:00:15] [%clk
00:00:29]} Rg5 {[%emt 00:00:13] [%clk 00:00:20]} 37. Qxh5+ {[%emt 00:00:01]
[%clk 00:00:29]} Rxh5 {[%clk 00:00:21]} 38. Nf3 {[%emt 00:00:01] [%clk
00:00:30]} Bd8 {[%emt 00:00:09] [%clk 00:00:15]} 39. b4 {[%clk 00:00:31]} Rfh8
{[%emt 00:00:02] [%clk 00:00:15]} 40. Rc8 {[%emt 00:00:02] [%clk 00:00:31]} Ke7
{[%emt 00:00:01] [%clk 00:00:16]} 41. Rb8 {[%emt 00:00:01] [%clk 00:00:32]} Rh1+
{[%emt 00:00:02] [%clk 00:00:16]} 42. Kf2 {[%clk 00:00:33]} Rb1 {[%emt 00:00:03]
[%clk 00:00:14]} 43. Rxb7+ {[%emt 00:00:02] [%clk 00:00:34]} Kf6 {[%emt
00:00:03] [%clk 00:00:13]} 44. Ke2 {[%emt 00:00:06] [%clk 00:00:31]} Rhh1 {[%emt
00:00:09] [%clk 00:00:05]} 45. Kd3 {[%emt 00:00:08] [%clk 00:00:25]} Rhd1+
{[%emt 00:00:02] [%clk 00:00:05]} 46. Kc4 {[%emt 00:00:01] [%clk 00:00:26]} Rf1
{[%emt 00:00:05] [%clk 00:00:03]} 47. Rb6 {[%emt 00:00:02] [%clk 00:00:25]} Be7
{[%clk 00:00:04]} 48. Rxa6 {[%emt 00:00:01] [%clk 00:00:26]} Ra1 {[%emt
00:00:01] [%clk 00:00:05]} 49. Ra8 {[%emt 00:00:01] [%clk 00:00:27]} Rfb1 {[%emt
00:00:03] [%clk 00:00:04]} 50. Kb5 {[%emt 00:00:01] [%clk 00:00:27]} Ra3 {[%emt
00:00:03] [%clk 00:00:04]} 51. Ra7 {[%clk 00:00:28]} Rab3 {[%emt 00:00:01] [%clk
00:00:04]} 52. Rc4 {[%clk 00:00:29]} R3b2 {[%emt 00:00:02] [%clk 00:00:06]} 53.
a6 {[%clk 00:00:30]} Rxg2 {[%emt 00:00:02] [%clk 00:00:06]} 54. Rd7 {[%emt
00:00:07] [%clk 00:00:25]} Rg3 {[%emt 00:00:01] [%clk 00:00:06]} 55. a7 {[%emt
00:00:02] [%clk 00:00:25]} Ra1 {[%emt 00:00:01] [%clk 00:00:07]} 56. Rcc7 {[%clk
00:00:26]} Rxf3 {[%emt 00:00:02] [%clk 00:00:08]} 57. Rxe7 {[%clk 00:00:27]}
Rfa3 {[%emt 00:00:01] [%clk 00:00:09]} 58. Re6+ {[%emt 00:00:02] [%clk
00:00:27]} Kg5 {[%emt 00:00:01] [%clk 00:00:10]} 59. Rxd6 {[%emt 00:00:02] [%clk
00:00:27]} f3 {[%emt 00:00:01] [%clk 00:00:11]} 60. Rf7 {[%emt 00:00:01] [%clk
00:00:28]} Rxa7 {[%emt 00:00:03] [%clk 00:00:11]} 61. Rdf6 {[%emt 00:00:03]
[%clk 00:00:27]} Rxf7 {[%emt 00:00:03] [%clk 00:00:10]} 62. Rxf7 {[%clk
00:00:28]} Kg4 {[%clk 00:00:11]} 63. d6 {[%emt 00:00:01] [%clk 00:00:29]} Rd1
{[%emt 00:00:02] [%clk 00:00:12]} 64. Kc6 {[%clk 00:00:30]} Kg3 {[%clk
00:00:13]} 65. d7 {[%emt 00:00:01] [%clk 00:00:31]} f2 {[%clk 00:00:14]} 66. b5
{[%emt 00:00:06] [%clk 00:00:27]} Kg2 {[%emt 00:00:02] [%clk 00:00:14]} 67. b6
{[%emt 00:00:01] [%clk 00:00:28]} Rc1+ {[%emt 00:00:02] [%clk 00:00:14]} 68. Kd6
{[%emt 00:00:01] [%clk 00:00:29]} f1=Q {[%emt 00:00:05] [%clk 00:00:12]} 69.
Rxf1 {[%clk 00:00:29]} Rxf1 {[%emt 00:00:01] [%clk 00:00:12]} 70. d8=Q {[%emt
00:00:03] [%clk 00:00:29]} Rd1+ {[%emt 00:00:01] [%clk 00:00:13]} 71. Ke7 {[%clk
00:00:30]} Rxd8 {[%emt 00:00:01] [%clk 00:00:14]} 72. Kxd8 {[%emt 00:00:02]
[%clk 00:00:30]} Kf3 {[%clk 00:00:15]} 73. b7 {[%clk 00:00:31]} Kxe4 {[%emt
00:00:02] [%clk 00:00:16]} 74. b8=Q {[%emt 00:00:02] [%clk 00:00:31]} 1-0

[Site "Europe Echecs"]

[Event "Championnat d'Europe de Blitz"]
[Date "2024.12.09"]
[White "Redzisz, Michal"]
[Black "Beerdsen, Thomas"]
[WhiteElo "2263"]
[BlackElo "2502"]
[Round "3.46"]
[Result "0-1"]
[TimeControl "180+2"]

1. e4 {[%clk 00:03:03]} e5 {[%emt 00:00:03] [%clk 00:03:03]} 2. Nf3 {[%clk
00:03:04]} Nc6 {[%clk 00:03:04]} 3. Bc4 {[%clk 00:03:05]} Nf6 {[%emt 00:00:02]
[%clk 00:03:04]} 4. d3 {[%emt 00:00:01] [%clk 00:03:06]} h6 {[%emt 00:00:01]
[%clk 00:03:05]} 5. c3 {[%emt 00:00:14] [%clk 00:02:55]} d6 {[%emt 00:00:01]
[%clk 00:03:05]} 6. Bb3 {[%emt 00:00:05] [%clk 00:02:52]} g5 {[%emt 00:00:04]
[%clk 00:03:03]} 7. Be3 {[%emt 00:00:32] [%clk 00:02:23]} Qe7 {[%emt 00:00:12]
[%clk 00:02:52]} 8. Nbd2 {[%emt 00:00:22] [%clk 00:02:03]} Be6 {[%emt 00:00:05]
[%clk 00:02:48]} 9. Qc2 {[%emt 00:00:17] [%clk 00:01:49]} d5 {[%emt 00:00:03]
[%clk 00:02:47]} 10. exd5 {[%emt 00:00:08] [%clk 00:01:43]} Nxd5 {[%emt
00:00:01] [%clk 00:02:47]} 11. Nf1 {[%emt 00:00:20] [%clk 00:01:27]} f5 {[%emt
00:00:14] [%clk 00:02:34]} 12. O-O-O {[%emt 00:00:23] [%clk 00:01:06]} O-O-O
{[%emt 00:00:03] [%clk 00:02:33]} 13. Ba4 {[%emt 00:00:19] [%clk 00:00:49]} Ndb4
{[%emt 00:00:28] [%clk 00:02:07]} 14. cxb4 {[%emt 00:00:14] [%clk 00:00:38]}
Nxb4 {[%emt 00:00:01] [%clk 00:02:07]} 15. Qe2 {[%emt 00:00:13] [%clk 00:00:27]}
f4 {[%emt 00:00:21] [%clk 00:01:48]} 16. Bxa7 {[%clk 00:00:28]} Nxa2+ {[%emt
00:00:08] [%clk 00:01:42]} 17. Kb1 {[%clk 00:00:29]} Qb4 {[%emt 00:00:01] [%clk
00:01:43]} 18. Qxe5 {[%emt 00:00:07] [%clk 00:00:24]} Nc3+ {[%emt 00:00:10]
[%clk 00:01:35]} 19. Qxc3 {[%emt 00:00:01] [%clk 00:00:25]} Qxa4 {[%emt
00:00:01] [%clk 00:01:36]} 20. Bc5 {[%emt 00:00:20] [%clk 00:00:06]} Qxd1+
{[%emt 00:00:03] [%clk 00:01:36]} 0-1

[Site "Europe Echecs"]